[Event "Titled Tuesday Blitz March 07 Early 2023"]
[White "Carlsen, Magnus"]
[Black "Goudriaan, Etienne"]
[WhiteFideId "1503014"]
[BlackFideId "1021150"]
[WhiteElo "2852"]
[BlackElo "2318"]
[Result "1-0"]
[Round "02"]
[TimeControl "180+2"]
[Date "2023.03.07"]
[WhiteClock "0:00:45"]
[BlackClock "0:00:02"]

1. a3 {[%clk 0:03:00]}  d5 {[%clk 0:02:59]} 2. f4 {[%clk 0:02:56]}  Nc6 {[%clk 0:02:49]} 3. d4 {[%clk 0:02:54]}  Bf5 {[%clk 0:02:44]} 4. e3 {[%clk 0:02:54]}  Nf6 {[%clk 0:02:43]} 5. c4 {[%clk 0:02:54]}  e6 {[%clk 0:02:43]} 6. Nc3 {[%clk 0:02:53]}  a6 {[%clk 0:02:43]} 7. Nf3 {[%clk 0:02:53]}  Ne4 {[%clk 0:02:43]} 8. Bd3 {[%clk 0:02:52]}  Be7 {[%clk 0:02:33]} 9. O-O {[%clk 0:02:49]}  Qd7 {[%clk 0:02:13]} 10. cxd5 {[%clk 0:02:43]}  exd5 {[%clk 0:02:12]} 11. Ne5 {[%clk 0:02:43]}  Nxe5 {[%clk 0:02:09]} 12. fxe5 {[%clk 0:02:43]}  Bg6 {[%clk 0:02:01]} 13. Nxe4 {[%clk 0:02:35]}  Bxe4 {[%clk 0:01:54]} 14. Bxe4 {[%clk 0:02:33]}  dxe4 {[%clk 0:01:55]} 15. Qc2 {[%clk 0:02:33]}  c5 {[%clk 0:01:30]} 16. Qxe4 {[%clk 0:02:23]}  Rd8 {[%clk 0:01:27]} 17. Rd1 {[%clk 0:02:11]}  O-O {[%clk 0:01:26]} 18. d5 {[%clk 0:02:07]}  Rfe8 {[%clk 0:01:23]} 19. Qf4 {[%clk 0:02:05]}  g5 {[%clk 0:01:10]} 20. Qg3 {[%clk 0:02:01]}  Qa4 {[%clk 0:01:08]} 21. Qf3 {[%clk 0:01:51]}  g4 {[%clk 0:01:05]} 22. b3 {[%clk 0:01:49]}  gxf3 {[%clk 0:00:48]} 23. bxa4 {[%clk 0:01:49]}  fxg2 {[%clk 0:00:36]} 24. Ra2 {[%clk 0:01:49]}  Kh8 {[%clk 0:00:33]} 25. Rxg2 {[%clk 0:01:48]}  Bf8 {[%clk 0:00:29]} 26. Bb2 {[%clk 0:01:40]}  Bg7 {[%clk 0:00:29]} 27. Rg5 {[%clk 0:01:37]}  h6 {[%clk 0:00:27]} 28. Rf5 {[%clk 0:01:38]}  Kg8 {[%clk 0:00:24]} 29. Kf2 {[%clk 0:01:37]}  Re7 {[%clk 0:00:19]} 30. Rg1 {[%clk 0:01:26]}  Kf8 {[%clk 0:00:18]} 31. d6 {[%clk 0:01:20]}  Re6 {[%clk 0:00:16]} 32. Kf3 {[%clk 0:01:20]}  b5 {[%clk 0:00:12]} 33. a5 {[%clk 0:01:19]}  Rb8 {[%clk 0:00:11]} 34. Ke4 {[%clk 0:01:16]}  b4 {[%clk 0:00:11]} 35. Rgf1 {[%clk 0:01:16]}  Rb7 {[%clk 0:00:11]} 36. Kd5 {[%clk 0:01:16]}  bxa3 {[%clk 0:00:10]} 37. Bxa3 {[%clk 0:01:16]}  Ke8 {[%clk 0:00:09]} 38. Bxc5 {[%clk 0:01:16]}  Rb5 {[%clk 0:00:09]} 39. Kc6 {[%clk 0:01:06]}  Bxe5 {[%clk 0:00:07]} 40. Rxe5 {[%clk 0:00:48]}  Rxe5 {[%clk 0:00:03]} 41. d7+ {[%clk 0:00:49]}  Kd8 {[%clk 0:00:04]} 42. Bb6+ {[%clk 0:00:50]}  Rxb6+ {[%clk 0:00:04]} 43. axb6 {[%clk 0:00:50]}  Re6+ {[%clk 0:00:04]} 44. Kb7 {[%clk 0:00:51]}  Kxd7 {[%clk 0:00:04]} 45. Ka7 {[%clk 0:00:48]}  Re7 {[%clk 0:00:03]} 46. b7 {[%clk 0:00:47]}  Kc6 {[%clk 0:00:03]} 47. Rf6+ {[%clk 0:00:47]}  Kb5 {[%clk 0:00:02]} 48. Rxa6 {[%clk 0:00:45]} 1-0


[Site "https://www.chess.com"]

[Event "Titled Tuesday Blitz March 07 Early 2023"]
[White "Nihal Sarin"]
[Black "Fiorito, Francisco"]
[WhiteFideId "25092340"]
[BlackFideId "180165"]
[WhiteElo "2689"]
[BlackElo "2341"]
[Result "1-0"]
[Round "02"]
[TimeControl "180+2"]
[Date "2023.03.07"]
[WhiteClock "0:00:15"]
[BlackClock "0:00:13"]

1. e4 {[%clk 0:03:00]}  c5 {[%clk 0:02:59]} 2. Nf3 {[%clk 0:03:00]}  Nc6 {[%clk 0:02:59]} 3. Bb5 {[%clk 0:03:00]}  g6 {[%clk 0:02:59]} 4. Bxc6 {[%clk 0:02:50]}  dxc6 {[%clk 0:03:00]} 5. d3 {[%clk 0:02:44]}  Bg7 {[%clk 0:03:00]} 6. Nc3 {[%clk 0:02:45]}  Qc7 {[%clk 0:03:00]} 7. h3 {[%clk 0:02:43]}  e5 {[%clk 0:03:00]} 8. Be3 {[%clk 0:02:42]}  b6 {[%clk 0:03:00]} 9. O-O {[%clk 0:02:42]}  Ne7 {[%clk 0:02:59]} 10. a3 {[%clk 0:02:43]}  O-O {[%clk 0:02:53]} 11. b4 {[%clk 0:02:42]}  cxb4 {[%clk 0:02:54]} 12. axb4 {[%clk 0:02:43]}  f6 {[%clk 0:02:54]} 13. b5 {[%clk 0:02:34]}  Be6 {[%clk 0:02:51]} 14. Qb1 {[%clk 0:02:31]}  c5 {[%clk 0:02:37]} 15. Ra4 {[%clk 0:02:30]}  Rfd8 {[%clk 0:02:31]} 16. Qb2 {[%clk 0:02:30]}  Rd7 {[%clk 0:02:27]} 17. Rfa1 {[%clk 0:02:27]}  Rad8 {[%clk 0:02:23]} 18. Ne1 {[%clk 0:02:15]}  Nc8 {[%clk 0:02:23]} 19. Ne2 {[%clk 0:02:15]}  Rf7 {[%clk 0:02:17]} 20. c4 {[%clk 0:02:15]}  f5 {[%clk 0:02:10]} 21. f3 {[%clk 0:02:15]}  Qe7 {[%clk 0:01:42]} 22. Nc3 {[%clk 0:02:13]}  h6 {[%clk 0:01:36]} 23. Nd5 {[%clk 0:02:07]}  Bxd5 {[%clk 0:01:36]} 24. cxd5 {[%clk 0:02:08]}  f4 {[%clk 0:01:29]} 25. Bf2 {[%clk 0:02:00]}  g5 {[%clk 0:01:30]} 26. Nc2 {[%clk 0:01:52]}  h5 {[%clk 0:01:29]} 27. Na3 {[%clk 0:01:53]}  g4 {[%clk 0:01:29]} 28. Nc4 {[%clk 0:01:32]}  Qg5 {[%clk 0:01:21]} 29. Kf1 {[%clk 0:01:28]}  Kh7 {[%clk 0:01:13]} 30. Qe2 {[%clk 0:01:21]}  gxh3 {[%clk 0:01:07]} 31. gxh3 {[%clk 0:01:22]}  Bh8 {[%clk 0:01:07]} 32. h4 {[%clk 0:01:07]}  Qg6 {[%clk 0:01:03]} 33. Qe1 {[%clk 0:01:07]}  Rg8 {[%clk 0:00:47]} 34. Ke2 {[%clk 0:01:07]}  Qg2 {[%clk 0:00:47]} 35. Qh1 {[%clk 0:01:01]}  Bf6 {[%clk 0:00:43]} 36. Rg1 {[%clk 0:00:43]}  Qxh1 {[%clk 0:00:41]} 37. Rxh1 {[%clk 0:00:44]}  Rg2 {[%clk 0:00:39]} 38. Kf1 {[%clk 0:00:39]}  Rg6 {[%clk 0:00:39]} 39. Rg1 {[%clk 0:00:29]}  Rxg1+ {[%clk 0:00:38]} 40. Kxg1 {[%clk 0:00:30]}  Rd7 {[%clk 0:00:37]} 41. Be1 {[%clk 0:00:29]}  Kg6 {[%clk 0:00:37]} 42. Bc3 {[%clk 0:00:29]}  Re7 {[%clk 0:00:33]} 43. d6 {[%clk 0:00:29]}  Nxd6 {[%clk 0:00:17]} 44. Nxd6 {[%clk 0:00:30]}  Rd7 {[%clk 0:00:17]} 45. Nc4 {[%clk 0:00:25]}  Rxd3 {[%clk 0:00:18]} 46. Bxe5 {[%clk 0:00:22]}  Rxf3 {[%clk 0:00:18]} 47. Rxa7 {[%clk 0:00:23]}  Bxh4 {[%clk 0:00:18]} 48. Rg7+ {[%clk 0:00:15]}  Kh6 {[%clk 0:00:18]} 49. Nd6 {[%clk 0:00:16]}  Bf2+ {[%clk 0:00:12]} 50. Kg2 {[%clk 0:00:13]}  Rg3+ {[%clk 0:00:13]} 51. Kxf2 {[%clk 0:00:14]}  Rxg7 {[%clk 0:00:13]} 52. Nf5+ {[%clk 0:00:15]} 1-0


[Site "https://www.chess.com"]

[Event "Titled Tuesday Blitz March 07 Early 2023"]
[White "Kvaloy, Aksel Bu"]
[Black "Naroditsky, Daniel"]
[WhiteFideId "1528815"]
[BlackFideId "2026961"]
[WhiteElo "2208"]
[BlackElo "2633"]
[Result "0-1"]
[Round "02"]
[TimeControl "180+2"]
[Date "2023.03.07"]
[WhiteClock "0:00:01"]
[BlackClock "0:00:13"]

1. d4 {[%clk 0:03:00]}  Nf6 {[%clk 0:02:58]} 2. c4 {[%clk 0:03:00]}  g6 {[%clk 0:02:59]} 3. Nc3 {[%clk 0:02:59]}  Bg7 {[%clk 0:02:59]} 4. Nf3 {[%clk 0:02:59]}  O-O {[%clk 0:02:59]} 5. Bg5 {[%clk 0:02:59]}  d6 {[%clk 0:02:51]} 6. e3 {[%clk 0:02:59]}  c5 {[%clk 0:02:51]} 7. Be2 {[%clk 0:02:59]}  Nc6 {[%clk 0:02:47]} 8. O-O {[%clk 0:02:58]}  Bg4 {[%clk 0:02:41]} 9. h3 {[%clk 0:02:56]}  Bxf3 {[%clk 0:02:41]} 10. Bxf3 {[%clk 0:02:57]}  Rc8 {[%clk 0:02:35]} 11. Re1 {[%clk 0:02:56]}  Nd7 {[%clk 0:02:29]} 12. Bxc6 {[%clk 0:02:52]}  Rxc6 {[%clk 0:02:24]} 13. d5 {[%clk 0:02:46]}  Rc8 {[%clk 0:02:24]} 14. Qd2 {[%clk 0:02:40]}  h6 {[%clk 0:02:15]} 15. Bh4 {[%clk 0:02:31]}  g5 {[%clk 0:02:05]} 16. Bg3 {[%clk 0:02:31]}  f5 {[%clk 0:02:05]} 17. f4 {[%clk 0:02:29]}  Qe8 {[%clk 0:01:48]} 18. e4 {[%clk 0:02:22]}  fxe4 {[%clk 0:01:46]} 19. Nxe4 {[%clk 0:02:23]}  gxf4 {[%clk 0:01:45]} 20. Bxf4 {[%clk 0:02:21]}  Qg6 {[%clk 0:01:43]} 21. Kh1 {[%clk 0:02:12]}  Ne5 {[%clk 0:01:37]} 22. Rac1 {[%clk 0:01:53]}  Rf7 {[%clk 0:01:27]} 23. Bxe5 {[%clk 0:01:43]}  Bxe5 {[%clk 0:01:26]} 24. b3 {[%clk 0:01:44]}  Rcf8 {[%clk 0:01:25]} 25. Qd3 {[%clk 0:01:44]}  Qf5 {[%clk 0:01:08]} 26. Rcd1 {[%clk 0:01:11]}  Kh8 {[%clk 0:01:06]} 27. Qe3 {[%clk 0:01:01]}  Qg6 {[%clk 0:00:50]} 28. Qe2 {[%clk 0:00:46]}  Rf4 {[%clk 0:00:46]} 29. Qe3 {[%clk 0:00:07]}  Rxe4 {[%clk 0:00:40]} 30. Qxe4 {[%clk 0:00:08]}  Rf1+ {[%clk 0:00:40]} 31. Rxf1 {[%clk 0:00:05]}  Qxe4 {[%clk 0:00:41]} 32. Rde1 {[%clk 0:00:06]}  Qd3 {[%clk 0:00:35]} 33. Rf3 {[%clk 0:00:05]}  Qd2 {[%clk 0:00:34]} 34. Ref1 {[%clk 0:00:06]}  Bf6 {[%clk 0:00:33]} 35. R3f2 {[%clk 0:00:05]}  Qd4 {[%clk 0:00:31]} 36. Rf3 {[%clk 0:00:05]}  a6 {[%clk 0:00:29]} 37. a4 {[%clk 0:00:03]}  b5 {[%clk 0:00:25]} 38. axb5 {[%clk 0:00:04]}  axb5 {[%clk 0:00:26]} 39. Rf4 {[%clk 0:00:04]}  Qc3 {[%clk 0:00:23]} 40. R4f3 {[%clk 0:00:04]}  Qb4 {[%clk 0:00:23]} 41. Rc1 {[%clk 0:00:05]}  Bg5 {[%clk 0:00:20]} 42. Rc2 {[%clk 0:00:04]}  bxc4 {[%clk 0:00:18]} 43. bxc4 {[%clk 0:00:05]}  Qe1+ {[%clk 0:00:18]} 44. Kh2 {[%clk 0:00:05]}  Bf6 {[%clk 0:00:19]} 45. Rcf2 {[%clk 0:00:04]}  Qe4 {[%clk 0:00:17]} 46. Rf4 {[%clk 0:00:02]}  Be5 {[%clk 0:00:17]} 47. g3 {[%clk 0:00:03]}  Bxf4 {[%clk 0:00:18]} 48. Rxf4 {[%clk 0:00:04]}  Qe2+ {[%clk 0:00:18]} 49. Kg1 {[%clk 0:00:04]}  Kg7 {[%clk 0:00:18]} 50. Rg4+ {[%clk 0:00:04]}  Kf6 {[%clk 0:00:18]} 51. Rf4+ {[%clk 0:00:05]}  Ke5 {[%clk 0:00:17]} 52. Kh1 {[%clk 0:00:06]}  Qe3 {[%clk 0:00:14]} 53. Kg2 {[%clk 0:00:05]}  Qxf4 {[%clk 0:00:09]} 54. gxf4+ {[%clk 0:00:06]}  Kxf4 {[%clk 0:00:09]} 55. Kf2 {[%clk 0:00:07]}  Ke4 {[%clk 0:00:09]} 56. Kg3 {[%clk 0:00:08]}  Kd4 {[%clk 0:00:10]} 57. Kg4 {[%clk 0:00:09]}  Kxc4 {[%clk 0:00:11]} 58. Kh5 {[%clk 0:00:10]}  Kxd5 {[%clk 0:00:11]} 59. Kxh6 {[%clk 0:00:11]}  c4 {[%clk 0:00:11]} 60. Kg6 {[%clk 0:00:11]}  c3 {[%clk 0:00:12]} 61. h4 {[%clk 0:00:12]}  c2 {[%clk 0:00:13]} 62. h5 {[%clk 0:00:13]}  c1=Q {[%clk 0:00:14]} 63. h6 {[%clk 0:00:14]}  Qc3 {[%clk 0:00:14]} 64. h7 {[%clk 0:00:14]}  Qh8 {[%clk 0:00:14]} 65. Kf7 {[%clk 0:00:14]}  Qxh7+ {[%clk 0:00:14]} 66. Ke8 {[%clk 0:00:15]}  e5 {[%clk 0:00:12]} 67. Kd8 {[%clk 0:00:14]}  Kc6 {[%clk 0:00:13]} 68. Ke8 {[%clk 0:00:15]}  e4 {[%clk 0:00:13]} 69. Kf8 {[%clk 0:00:14]}  e3 {[%clk 0:00:14]} 70. Ke8 {[%clk 0:00:14]}  e2 {[%clk 0:00:15]} 71. Kf8 {[%clk 0:00:15]}  d5 {[%clk 0:00:14]} 72. Ke8 {[%clk 0:00:14]}  e1=Q+ {[%clk 0:00:14]} 73. Kf8 {[%clk 0:00:01]}  Qee7# {[%clk 0:00:13]} 0-1


[Site "https://www.chess.com"]

[Event "Titled Tuesday Blitz March 07 Early 2023"]
[White "Erigaisi Arjun"]
[Black "Tan, Jun Ying"]
[WhiteFideId "35009192"]
[BlackFideId "5710413"]
[WhiteElo "2737"]
[BlackElo "2089"]
[Result "1-0"]
[Round "02"]
[TimeControl "180+2"]
[Date "2023.03.07"]
[WhiteClock "0:01:46"]
[BlackClock "0:00:02"]

1. b3 {[%clk 0:03:00]}  d5 {[%clk 0:02:53]} 2. Bb2 {[%clk 0:02:59]}  c6 {[%clk 0:02:54]} 3. Nf3 {[%clk 0:02:57]}  Bf5 {[%clk 0:02:52]} 4. d3 {[%clk 0:02:55]}  e6 {[%clk 0:02:52]} 5. Nbd2 {[%clk 0:02:54]}  Nf6 {[%clk 0:02:52]} 6. Nh4 {[%clk 0:02:54]}  Bg6 {[%clk 0:02:51]} 7. g3 {[%clk 0:02:51]}  Nbd7 {[%clk 0:02:51]} 8. Bg2 {[%clk 0:02:47]}  Be7 {[%clk 0:02:51]} 9. O-O {[%clk 0:02:46]}  O-O {[%clk 0:02:50]} 10. Nxg6 {[%clk 0:02:46]}  hxg6 {[%clk 0:02:51]} 11. e4 {[%clk 0:02:46]}  Qc7 {[%clk 0:02:37]} 12. Qe2 {[%clk 0:02:40]}  a5 {[%clk 0:02:31]} 13. e5 {[%clk 0:02:38]}  Ne8 {[%clk 0:02:31]} 14. a3 {[%clk 0:02:38]}  a4 {[%clk 0:02:28]} 15. b4 {[%clk 0:02:37]}  c5 {[%clk 0:02:28]} 16. b5 {[%clk 0:02:35]}  Qa5 {[%clk 0:02:20]} 17. c4 {[%clk 0:02:34]}  Nb6 {[%clk 0:02:03]} 18. h4 {[%clk 0:02:20]}  Qa7 {[%clk 0:01:43]} 19. f4 {[%clk 0:02:17]}  dxc4 {[%clk 0:01:07]} 20. dxc4 {[%clk 0:02:16]}  Rd8 {[%clk 0:01:08]} 21. Ne4 {[%clk 0:02:14]}  Nc7 {[%clk 0:00:48]} 22. Rac1 {[%clk 0:01:59]}  Qa5 {[%clk 0:00:39]} 23. h5 {[%clk 0:01:56]}  gxh5 {[%clk 0:00:39]} 24. Qxh5 {[%clk 0:01:56]}  Nxc4 {[%clk 0:00:39]} 25. Rxc4 {[%clk 0:01:51]}  Qxb5 {[%clk 0:00:39]} 26. Rc2 {[%clk 0:01:51]}  Nd5 {[%clk 0:00:35]} 27. Nf6+ {[%clk 0:01:46]}  Nxf6 {[%clk 0:00:24]} 28. exf6 {[%clk 0:01:45]}  Bxf6 {[%clk 0:00:24]} 29. Bxf6 {[%clk 0:01:44]}  gxf6 {[%clk 0:00:25]} 30. Be4 {[%clk 0:01:44]}  Rfe8 {[%clk 0:00:17]} 31. Qh6 {[%clk 0:01:45]}  f5 {[%clk 0:00:16]} 32. Rh2 {[%clk 0:01:45]}  f6 {[%clk 0:00:05]} 33. Qxf6 {[%clk 0:01:45]}  Qxf1+ {[%clk 0:00:03]} 34. Kxf1 {[%clk 0:01:46]}  Rd1+ {[%clk 0:00:02]} 35. Ke2 {[%clk 0:01:46]}  fxe4 {[%clk 0:00:02]} 36. Rh8# {[%clk 0:01:46]} 1-0


[Site "https://www.chess.com"]

[Event "Titled Tuesday Blitz March 07 Early 2023"]
[White "Pranav, V"]
[Black "Hamitevici, Vladimir"]
[WhiteFideId "25060783"]
[BlackFideId "13902393"]
[WhiteElo "2500"]
[BlackElo "2401"]
[Result "1-0"]
[Round "02"]
[TimeControl "180+2"]
[Date "2023.03.07"]
[WhiteClock "0:00:10"]
[BlackClock "0:00:44"]

1. e4 {[%clk 0:02:56]}  e5 {[%clk 0:02:57]} 2. Nf3 {[%clk 0:02:56]}  Nc6 {[%clk 0:02:57]} 3. Bb5 {[%clk 0:02:56]}  a6 {[%clk 0:02:57]} 4. Ba4 {[%clk 0:02:56]}  d6 {[%clk 0:02:56]} 5. Bxc6+ {[%clk 0:02:55]}  bxc6 {[%clk 0:02:57]} 6. d4 {[%clk 0:02:56]}  exd4 {[%clk 0:02:51]} 7. Nxd4 {[%clk 0:02:53]}  c5 {[%clk 0:02:47]} 8. Nc6 {[%clk 0:02:53]}  Qd7 {[%clk 0:02:44]} 9. Na5 {[%clk 0:02:53]}  Nf6 {[%clk 0:02:31]} 10. O-O {[%clk 0:02:50]}  Be7 {[%clk 0:02:20]} 11. Nc3 {[%clk 0:02:47]}  O-O {[%clk 0:02:16]} 12. Re1 {[%clk 0:02:40]}  Re8 {[%clk 0:02:13]} 13. Bg5 {[%clk 0:02:33]}  h6 {[%clk 0:02:12]} 14. Bh4 {[%clk 0:02:33]}  Rb8 {[%clk 0:01:41]} 15. b3 {[%clk 0:02:24]}  Rb4 {[%clk 0:01:41]} 16. Nc4 {[%clk 0:02:16]}  Qg4 {[%clk 0:01:41]} 17. Qxg4 {[%clk 0:02:10]}  Bxg4 {[%clk 0:01:42]} 18. e5 {[%clk 0:01:58]}  dxe5 {[%clk 0:01:42]} 19. Nxe5 {[%clk 0:01:52]}  Be6 {[%clk 0:01:24]} 20. Bg3 {[%clk 0:01:39]}  Bd6 {[%clk 0:01:24]} 21. Nf3 {[%clk 0:01:26]}  c4 {[%clk 0:00:51]} 22. Rad1 {[%clk 0:01:11]}  cxb3 {[%clk 0:00:50]} 23. axb3 {[%clk 0:01:01]}  Bxg3 {[%clk 0:00:48]} 24. hxg3 {[%clk 0:01:00]}  c5 {[%clk 0:00:49]} 25. Ne5 {[%clk 0:00:37]}  Rc8 {[%clk 0:00:43]} 26. Ra1 {[%clk 0:00:28]}  c4 {[%clk 0:00:43]} 27. bxc4 {[%clk 0:00:28]}  Bxc4 {[%clk 0:00:44]} 28. Nxc4 {[%clk 0:00:15]}  Rbxc4 {[%clk 0:00:45]} 29. Nd1 {[%clk 0:00:09]}  Rxc2 {[%clk 0:00:43]} 30. Ne3 {[%clk 0:00:10]}  Rc1 {[%clk 0:00:44]} 31. Rexc1 {[%clk 0:00:10]} 1-0


[Site "https://www.chess.com"]

[Event "Titled Tuesday Blitz March 07 Early 2023"]
[White "Hakobyan, Aram"]
[Black "Mamedov, Edgar"]
[WhiteFideId "13306677"]
[BlackFideId "13739980"]
[WhiteElo "2563"]
[BlackElo "2330"]
[Result "1-0"]
[Round "02"]
[TimeControl "180+2"]
[Date "2023.03.07"]
[WhiteClock "0:00:10"]
[BlackClock "0:00:02"]

1. e4 {[%clk 0:03:00]}  c5 {[%clk 0:02:57]} 2. Nf3 {[%clk 0:03:00]}  e6 {[%clk 0:02:57]} 3. g3 {[%clk 0:02:58]}  Nc6 {[%clk 0:02:54]} 4. Bg2 {[%clk 0:02:58]}  d6 {[%clk 0:02:54]} 5. O-O {[%clk 0:02:57]}  Nf6 {[%clk 0:02:54]} 6. Re1 {[%clk 0:02:57]}  Be7 {[%clk 0:02:54]} 7. c3 {[%clk 0:02:58]}  O-O {[%clk 0:02:53]} 8. d4 {[%clk 0:02:58]}  cxd4 {[%clk 0:02:52]} 9. cxd4 {[%clk 0:02:59]}  d5 {[%clk 0:02:52]} 10. e5 {[%clk 0:03:00]}  Ne4 {[%clk 0:02:52]} 11. Nbd2 {[%clk 0:03:00]}  Nxd2 {[%clk 0:02:52]} 12. Bxd2 {[%clk 0:03:01]}  Qb6 {[%clk 0:02:52]} 13. Bc3 {[%clk 0:03:00]}  Bd7 {[%clk 0:02:52]} 14. h4 {[%clk 0:03:00]}  Bb4 {[%clk 0:02:46]} 15. Ng5 {[%clk 0:02:58]}  h6 {[%clk 0:02:43]} 16. Nh3 {[%clk 0:02:56]}  Bxc3 {[%clk 0:02:43]} 17. bxc3 {[%clk 0:02:56]}  Ne7 {[%clk 0:02:43]} 18. Nf4 {[%clk 0:02:55]}  Rac8 {[%clk 0:02:42]} 19. Rc1 {[%clk 0:02:44]}  Qb2 {[%clk 0:02:37]} 20. Re2 {[%clk 0:02:31]}  Qa3 {[%clk 0:02:35]} 21. Qd2 {[%clk 0:02:12]}  Nf5 {[%clk 0:02:34]} 22. Bh3 {[%clk 0:02:11]}  Nxd4 {[%clk 0:02:29]} 23. Re3 {[%clk 0:02:09]}  Nc6 {[%clk 0:01:12]} 24. Nh5 {[%clk 0:02:03]}  Na5 {[%clk 0:01:08]} 25. Ree1 {[%clk 0:01:48]}  Rc7 {[%clk 0:00:56]} 26. Qf4 {[%clk 0:01:45]}  Rc4 {[%clk 0:00:54]} 27. Qf3 {[%clk 0:01:42]}  Rfc8 {[%clk 0:00:49]} 28. Bf1 {[%clk 0:01:41]}  Ra4 {[%clk 0:00:45]} 29. Bd3 {[%clk 0:01:34]}  Nc4 {[%clk 0:00:40]} 30. Rc2 {[%clk 0:01:16]}  Bb5 {[%clk 0:00:30]} 31. Rce2 {[%clk 0:01:05]}  Qf8 {[%clk 0:00:24]} 32. Rc2 {[%clk 0:00:59]}  Na3 {[%clk 0:00:22]} 33. Rd2 {[%clk 0:00:59]}  Bxd3 {[%clk 0:00:19]} 34. Rxd3 {[%clk 0:01:00]}  Nc4 {[%clk 0:00:16]} 35. Re2 {[%clk 0:00:54]}  Ra6 {[%clk 0:00:09]} 36. Rd4 {[%clk 0:00:54]}  Rb6 {[%clk 0:00:06]} 37. Rg4 {[%clk 0:00:54]}  g6 {[%clk 0:00:06]} 38. Nf6+ {[%clk 0:00:54]}  Kh8 {[%clk 0:00:05]} 39. Qd3 {[%clk 0:00:37]}  Qg7 {[%clk 0:00:04]} 40. f4 {[%clk 0:00:33]}  Rb2 {[%clk 0:00:03]} 41. h5 {[%clk 0:00:32]}  Rxe2 {[%clk 0:00:02]} 42. Qxe2 {[%clk 0:00:33]}  g5 {[%clk 0:00:02]} 43. fxg5 {[%clk 0:00:34]}  hxg5 {[%clk 0:00:02]} 44. Qe1 {[%clk 0:00:32]}  Qh6 {[%clk 0:00:03]} 45. Nd7 {[%clk 0:00:30]}  Rd8 {[%clk 0:00:02]} 46. Nf6 {[%clk 0:00:31]}  Rc8 {[%clk 0:00:02]} 47. Qe2 {[%clk 0:00:32]}  Rd8 {[%clk 0:00:03]} 48. Rd4 {[%clk 0:00:31]}  Rc8 {[%clk 0:00:02]} 49. Kg2 {[%clk 0:00:30]}  g4 {[%clk 0:00:02]} 50. Nxg4 {[%clk 0:00:28]}  Qg5 {[%clk 0:00:02]} 51. Rf4 {[%clk 0:00:28]}  Rg8 {[%clk 0:00:02]} 52. Qf3 {[%clk 0:00:26]}  Qxh5 {[%clk 0:00:02]} 53. Kg1 {[%clk 0:00:08]}  Qg6 {[%clk 0:00:02]} 54. Rf6 {[%clk 0:00:07]}  Qxg4 {[%clk 0:00:02]} 55. Rh6+ {[%clk 0:00:08]}  Kg7 {[%clk 0:00:02]} 56. Qxg4+ {[%clk 0:00:09]}  Kxh6 {[%clk 0:00:02]} 57. Qxg8 {[%clk 0:00:09]}  Nxe5 {[%clk 0:00:02]} 58. Qh8+ {[%clk 0:00:10]} 1-0


[Site "https://www.chess.com"]

[Event "Titled Tuesday Blitz March 07 Early 2023"]
[White "Fedoseev, Vladimir"]
[Black "Vlassov, Nikolai"]
[WhiteFideId "24130737"]
[BlackFideId "4103360"]
[WhiteElo "2752"]
[BlackElo "2324"]
[Result "1-0"]
[Round "02"]
[TimeControl "180+2"]
[Date "2023.03.07"]
[WhiteClock "0:00:49"]
[BlackClock "0:00:02"]

1. e4 {[%clk 0:02:35]}  Nc6 {[%clk 0:02:58]} 2. d4 {[%clk 0:02:32]}  d5 {[%clk 0:02:58]} 3. e5 {[%clk 0:02:32]}  h5 {[%clk 0:02:56]} 4. c3 {[%clk 0:02:26]}  Bg4 {[%clk 0:02:56]} 5. Qb3 {[%clk 0:02:25]}  Na5 {[%clk 0:02:56]} 6. Qa4+ {[%clk 0:02:23]}  c6 {[%clk 0:02:55]} 7. Bd3 {[%clk 0:02:22]}  e6 {[%clk 0:02:15]} 8. Nd2 {[%clk 0:02:06]}  b5 {[%clk 0:02:09]} 9. Qc2 {[%clk 0:02:05]}  Nh6 {[%clk 0:02:03]} 10. Nb3 {[%clk 0:01:56]}  Bf5 {[%clk 0:01:56]} 11. Bxh6 {[%clk 0:01:53]}  Bxd3 {[%clk 0:01:55]} 12. Qxd3 {[%clk 0:01:53]}  Rxh6 {[%clk 0:01:55]} 13. Nxa5 {[%clk 0:01:50]}  Qxa5 {[%clk 0:01:54]} 14. Nf3 {[%clk 0:01:51]}  c5 {[%clk 0:01:36]} 15. dxc5 {[%clk 0:01:28]}  b4 {[%clk 0:01:36]} 16. a3 {[%clk 0:01:24]}  bxa3 {[%clk 0:01:26]} 17. b4 {[%clk 0:01:23]}  Qa4 {[%clk 0:01:26]} 18. Qd1 {[%clk 0:01:11]}  Qb5 {[%clk 0:01:15]} 19. Qe2 {[%clk 0:01:11]}  Qa4 {[%clk 0:01:12]} 20. Qa2 {[%clk 0:01:11]}  Qb5 {[%clk 0:00:55]} 21. Qxa3 {[%clk 0:01:10]}  Rg6 {[%clk 0:00:54]} 22. Qa4 {[%clk 0:01:07]}  Qxa4 {[%clk 0:00:51]} 23. Rxa4 {[%clk 0:01:08]}  Rxg2 {[%clk 0:00:51]} 24. Ke2 {[%clk 0:01:08]}  g5 {[%clk 0:00:30]} 25. h4 {[%clk 0:01:05]}  gxh4 {[%clk 0:00:21]} 26. Rxh4 {[%clk 0:01:04]}  Be7 {[%clk 0:00:12]} 27. Rxh5 {[%clk 0:01:03]}  Kd7 {[%clk 0:00:13]} 28. Nd4 {[%clk 0:01:01]}  Rg1 {[%clk 0:00:11]} 29. Rh7 {[%clk 0:01:00]}  Rc1 {[%clk 0:00:06]} 30. Kd3 {[%clk 0:00:49]}  Rd1+ {[%clk 0:00:05]} 31. Kc2 {[%clk 0:00:48]}  Rf1 {[%clk 0:00:05]} 32. Rxf7 {[%clk 0:00:49]}  Ke8 {[%clk 0:00:03]} 33. Rf3 {[%clk 0:00:48]}  Kd7 {[%clk 0:00:02]} 34. Ra6 {[%clk 0:00:49]} 1-0


[Site "https://www.chess.com"]